Cogmind - Beta 15 @@@ ROGUE MODE // 2025.07.27 @ 20:31:02 Player: Waste Result: Destroyed by G-67 Veteran with Field Laser Performance ------------- Evolutions (7) 3500 Regions Visited (12) 2400 Robots Destroyed (101) 505 Value Destroyed (4359) 4359 Prototype IDs (46) 920 Alien Tech Used (2) 400 Bonus (1492) 1492 TOTAL SCORE: 13576 Bonus ------- High Alert Combat Kills 36 Follower Combat Kills 356 Registered with UFD 300 Met Optimus in HQ 500 Met Zhirov 300 Cogmind --------- Core Integrity 0/1300 Matter 108/300 Energy 500/500 System Corruption 25% Temperature Cool (30) Movement Core (800) Ox15 Location -3/Testing Parts ------- > --- POWER (2) -------- (None) > --- PROPULSION (6) --- (None) > --- UTILITY (11) ----- High-capacity Storage Unit Improved Energy Well Advanced Signal Interpreter Improved Melee Analysis Suite Advanced Melee Analysis Suite Advanced Corruption Screen > --- WEAPON (2) ------- Companion Sword > --- INVENTORY (20) --- AEGIS Remote Shield Phase Cannon Powered Cannon Matter Neutralizer Fusion Bomb Launcher Peak State ------------ > --- POWER ------------ Mini Fusion Reactor Particle Reactor > --- PROPULSION ------- Enhanced Flexi-carbon Leg Enhanced Flexi-carbon Leg Enhanced Multireflex Exoskeleton Enhanced Multireflex Exoskeleton > --- UTILITY ---------- Advanced Heat Sink Advanced Heat Sink High-capacity Storage Unit Long-range Sensor Array Advanced Signal Interpreter Improved Melee Analysis Suite Advanced Melee Analysis Suite Advanced Target Analyzer Nanoactuators Advanced Focal Shield Advanced Thermal Shield > --- WEAPON ----------- Companion Sword > --- INVENTORY -------- Antimatter Reactor Particle Reactor Particle Reactor Myomer Leg Myomer Leg Myomer Leg Biometal Leg Improved Thunder Leg Enhanced Multireflex Exoskeleton Structural Scanner Transdimensional Reconstructor Phase Cannon Powered Cannon Matter Neutralizer Rocket Array Fusion Bomb Launcher [Rating: 145] Favorites ----------- Power Ion Engine Engine Ion Engine Power Core Neutrino Core Reactor Particle Reactor Propulsion Flexi-carbon Leg Treads Light Treads Leg Flexi-carbon Leg Wheel Compact Wheel Hover Unit Combat Gravmag System Utility High-capacity Storage Unit Device Structural Scanner Storage High-capacity Storage Unit Processor Advanced Melee Analysis Suite Hackware Hacking Suite Protection Utility Shielding Weapon Companion Sword Energy Gun Small Laser Energy Cannon Subdweller Beam Cannon Ballistic Gun Assault Rifle Launcher Rocket Array Slashing Weapon Companion Sword Build | -11 -10 -10 -9 -6 -5 -4 -4 -4 -4 -3 -3 -3 ------- Run | Yrd Mat Sub Scr Fac Fac Fac Upp Upp Zhi Pro Res Tes Slots Evolved 14 | . . . . 8 2 2 . . . . 2 . Power 1 | . . . . 1 . . . . . . . . Propulsion 4 | . . . . 2 2 . . . . . . . Utility 9 | . . . . 5 . 2 . . . . 2 . Weapon . | . . . . . . . . . . . . . Parts Attached 131 | . 3 3 5 30 13 19 2 . 3 4 37 12 Power 21 | . . . . 5 4 3 . . 1 . 6 2 Engine 7 | . . . . 5 2 . . . . . . . Core 6 | . . . . . 2 2 . . 1 . . 1 Reactor 8 | . . . . . . 1 . . . . 6 1 Propulsion 40 | . . . 3 10 4 11 . . . 2 8 2 Treads 6 | . . . 3 1 2 . . . . . . . Leg 20 | . . . . 1 1 6 . . . 2 8 2 Wheel 9 | . . . . 8 1 . . . . . . . Hover 5 | . . . . . . 5 . . . . . . Flight . | . . . . . . . . . . . . . Utility 60 | . 3 . 1 12 4 5 2 . 2 2 21 8 Device 33 | . . . . 6 1 3 2 . 1 1 14 5 Storage 4 | . 2 . . . . . . . . . 1 1 Processor 8 | . . . . 2 1 . . . . . 4 1 Hackware 6 | . . . . 2 1 2 . . . . . 1 Protection 9 | . 1 . 1 2 1 . . . 1 1 2 . Artifact . | . . . . . . . . . . . . . Weapon 10 | . . 3 1 3 1 . . . . . 2 . Energy Gun . | . . . . . . . . . . . . . Energy Cannon 2 | . . 1 . . . . . . . . 1 . Ballistic Gun 2 | . . 2 . . . . . . . . . . Ballistic Cannon . | . . . . . . . . . . . . . Launcher 5 | . . . . 3 1 . . . . . 1 . Special Weapon . | . . . . . . . . . . . . . Impact Weapon . | . . . . . . . . . . . . . Slashing Weapon 1 | . . . 1 . . . . . . . . . Piercing Weapon . | . . . . . . . . . . . . . Special Melee Weapon . | . . . . . . . . . . . . . Unidentified Prototypes 19 | . . . 1 2 2 . . . 3 . 6 5 Corrupted Parts 4 | . . . . 4 . . . . . . . . System Corruption 23 | . . . . 23 . . . . . . . . Parts Lost 68 | . . . . 21 2 3 . . . 1 20 21 Power 11 | . . . . 5 . . . . . . 2 4 Propulsion 19 | . . . . 9 1 . . . . . 3 6 Utility 37 | . . . . 7 1 3 . . . 1 14 11 Weapon 1 | . . . . . . . . . . . 1 . Highest Loss Streak 19 | . . . . 7 2 2 . . . 1 6 19 To Critical Strikes . | . . . . . . . . . . . . . Average Backups 16 | . 9 14 18 12 15 16 17 17 17 17 16 11 Power 1 | . 1 2 1 . . . 1 1 1 1 2 1 Propulsion 3 | . 4 4 3 3 4 5 4 3 3 3 4 1 Utility 4 | . 1 2 5 4 4 5 6 8 8 7 4 4 Weapon 5 | . 3 5 8 4 4 5 5 5 4 4 4 4 Tool/Special . | . . . . . . . . . . . . . Unused Backups 32 | . 6 2 12 2 1 . 1 1 2 2 1 2 Power 7 | . 1 1 3 2 . . . . . . . . Propulsion 8 | . 2 1 2 . . . 1 . . 1 1 . Utility 7 | . 1 . 1 . 1 . . 1 2 1 . . Weapon 10 | . 2 . 6 . . . . . . . . 2 Tool/Special . | . . . . . . . . . . . . . Average Slot Usage (%) 89 | . 99 100 88 84 82 83 94 94 93 94 84 83 Engine 7 | . 14 14 14 9 5 3 . . . . . . Core 1 | . . . . . 3 5 5 5 5 5 . 1 Reactor 2 | . . . . . . 1 5 5 5 5 8 5 Treads 4 | . . . 11 9 6 . . . . . . . Leg 20 | . 28 28 16 1 1 10 31 31 31 31 21 20 Wheel 1 | . . . . 12 18 . . . . . . . Device 10 | . . . . 10 8 14 21 21 20 15 24 25 Storage 8 | . 14 14 14 6 5 5 5 5 5 5 4 4 Processor 6 | . . . . 11 11 10 10 10 10 10 11 14 Hackware 3 | . . . . 11 6 10 10 10 10 10 1 2 Protection 7 | . 13 14 14 2 3 2 . . . 4 5 . Energy Cannon 1 | . . 3 3 . . . . . . . . . Ballistic Gun 4 | . 14 22 3 . . . . . . . . . Slashing Weapon 5 | . . . 10 6 5 5 5 5 5 5 4 4 Peak Build Rating 145 | . 8 13 21 54 64 100 104 100 106 106 145 131 Average Rating 63 | . 7 9 16 46 57 88 100 100 100 101 130 120 On Entrance 60 | 6 6 8 13 21 45 62 100 100 100 106 103 116 Naked Turns . | . . . . . . . . . . . . . Heaviest Build 116 | 13 49 58 58 79 72 88 87 82 96 99 116 106 Greatest Support 156 | 20 20 20 40 60 64 133 133 133 133 141 156 156 Greatest Overweight (x) 3 | . 2 2 2 3 1 2 . . . . 1 2 Average Overweight (x) . | . . 2 1 1 . . . . . . . . Largest Inventory Capacity 20 | . 20 20 20 20 20 20 20 20 20 20 20 20 Average Capacity 19 | . 15 20 20 20 20 20 20 20 20 20 20 20 Most Carried 20 | . 11 20 20 20 20 20 20 20 20 20 20 16 Average Carried 17 | . 9 14 19 14 17 19 19 19 19 19 18 13 Final Capacity 20 | 8 20 20 20 20 20 20 20 20 20 20 20 20 Final Carried 20 | 6 11 20 19 14 20 20 19 20 19 20 16 6 Class Distribution -------------------- 48% | Mutant 30% | Scavenger-Assassin 7% | Infiltrator-Assassin 6% | Scavenger-Mutant 3% | Hacker-Mutant Dominant Class ---------------- Mutant | -10/Materials Mutant | -10/Subcaves Mutant | -9/Scraptown Scavenger-Mutant | -6/Factory Scavenger-Mutant | -5/Factory Scavenger-Assassin | -4/Factory Scavenger-Assassin | -4/Upper Caves Scavenger-Assassin | -4/Upper Caves Scavenger-Assassin | -4/Zhirov Scavenger-Assassin | -3/Proximity Caves Infiltrator-Assassin | -3/Research Scavenger-Assassin | -3/Testing Resources | -11 -10 -10 -9 -6 -5 -4 -4 -4 -4 -3 -3 -3 ----------- Run | Yrd Mat Sub Scr Fac Fac Fac Upp Upp Zhi Pro Res Tes Matter Collected 2349 | 200 . 138 20 302 243 260 40 . 70 85 887 104 Remotely . | . . . . . . . . . . . . . Salvage Created 6409 | . 12 247 . 1576 484 374 76 67 336 132 2364 741 Parts 289 | . 2 23 . 60 19 13 1 2 3 5 125 36 Haulers Intercepted 2 | . . . . 1 1 . . . . . . . Recyclers Shooed 3 | . . . . . 1 1 . . . . . 1 Parts Field Recycled . | . . . . . . . . . . . . . Retrieved Matter . | . . . . . . . . . . . . . Parts Self-Destructed 14 | . . 7 . . . . 1 2 1 3 . . Prevented . | . . . . . . . . . . . . . Kills | -11 -10 -10 -9 -6 -5 -4 -4 -4 -4 -3 -3 -3 ------- Run | Yrd Mat Sub Scr Fac Fac Fac Upp Upp Zhi Pro Res Tes Combat Hostiles Destroyed 66 | . . 6 . 13 5 5 1 . . 2 25 9 Melee 45 | . . . . 8 . 5 1 . . 2 22 7 Guns 5 | . . 4 . . . . . . . . . 1 Cannons 2 | . . 2 . . . . . . . . . . AOE 11 | . . . . 3 5 . . . . . 3 . Classes Destroyed 15 | . 1 1 . 10 2 . . . . . 1 . Worker 11 | . . . . 4 1 . . . . . 2 4 Builder 7 | . . . . 4 . . . . . . 2 1 Tunneler 1 | . . . . . 1 . . . . . . . Hauler 2 | . . . . 1 1 . . . . . . . Recycler 11 | . . . . 3 2 . . . . . 6 . Operator 2 | . . . . 1 1 . . . . . . . Watcher 1 | . 1 . . . . . . . . . . . Swarmer 10 | . . . . . 5 . . . . . 5 . Grunt 19 | . . . . 8 . 3 1 . . . 1 6 Brawler 1 | . . . . 1 . . . . . . . . Duelist 1 | . . . . 1 . . . . . . . . Sentry 5 | . . . . 1 . 1 . . . . 3 . Hunter 9 | . . . . 2 . 1 . . . 2 4 . Programmer 15 | . . . . . . . . . . . 12 3 Subdweller 6 | . . 6 . . . . . . . . . . Best Kill Streak 9 | . 1 3 . 9 6 4 1 . . 1 5 3 Combat Bots Only 5 | . . 3 . 5 5 4 1 . . 1 4 3 Max Kills in Single Turn 4 | . 1 1 . 3 4 1 1 . . 1 3 2 Gunslinging . | . . . . . . . . . . . . . Exploded 4 | . . . . 2 4 . . . . . 2 . Melee 2 | . . . . 2 . 1 1 . . 1 1 2 Uniques/NPCs Destroyed . | . . . . . . . . . . . . . Combat | -11 -10 -10 -9 -6 -5 -4 -4 -4 -4 -3 -3 -3 -------- Run | Yrd Mat Sub Scr Fac Fac Fac Upp Upp Zhi Pro Res Tes Hostile Shots Fired 1021 | . . 29 . 228 13 75 2 . . 96 337 241 Missed 339 | . . 10 . 79 3 23 1 . . 36 123 64 Deflected 17 | . . . . . . . . . . . 6 11 Hits 682 | . . 19 . 149 10 52 1 . . 60 214 177 Melee 3 | . . . . 3 . . . . . . . . Projectile 679 | . . 19 . 146 10 52 1 . . 60 214 177 Critical Strikes 30 | . . . . 4 . 1 . . . 1 7 17 Damage Taken 10930 | . . 409 . 1844 255 917 10 . . 564 3966 2965 Core 1938 | . . 70 . 339 33 149 . . . 79 593 675 Absorbed by Shields 875 | . . . . 288 . . 4 . . 169 292 122 Redirected to Shielding 41 | . . 7 . 34 . . . . . . . . Ignored by Resistances 930 | . . . . . . . 7 . . 291 273 359 Regen/Repaired (Parts) 144 | . . . . . . . . . . . . 144 Core Remaining (%) 81 | 100 . . 72 60 96 . . . . 80 . . Volleys Fired 42 | . 1 20 . 11 2 . . . . . 8 . Largest 2 | . 2 2 . 1 1 . . . . . 1 . Hottest 100 | . 60 100 . 39 45 . . . . . 85 . Shots Fired 60 | . 2 37 . 11 2 . . . . . 8 . Gun 27 | . 2 25 . . . . . . . . . . Cannon 16 | . . 12 . . . . . . . . 4 . Launcher 17 | . . . . 11 2 . . . . . 4 . Special . | . . . . . . . . . . . . . Kinetic 26 | . 1 25 . . . . . . . . . . Thermal 17 | . 1 12 . . . . . . . . 4 . Explosive 6 | . . . . . 2 . . . . . 4 . Electromagnetic 11 | . . . . 11 . . . . . . . . Robot Hit Streak 11 | . 1 11 . 3 4 . . . . . 2 . Robot Miss Streak 4 | . . 1 . 2 3 . . . . . 4 . Penetration Max . | . . . . . . . . . . . . . Secondary Targets . | . . . . . . . . . . . . . Shots Hit Robots 286 | . 1 25 . 49 13 26 2 1 4 15 87 63 Core Hits 188 | . 1 12 . 34 14 8 1 1 2 4 90 21 Critical Kills . | . . . . . . . . . . . . . Critical Parts Destroyed . | . . . . . . . . . . . . . Critical Strikes 16 | . . . . 2 2 . . . . 2 6 4 Melee Attacks 332 | . . . . 47 14 37 2 2 4 19 132 75 Impact . | . . . . . . . . . . . . . Slashing 332 | . . . . 47 14 37 2 2 4 19 132 75 Piercing . | . . . . . . . . . . . . . Sneak Attacks 38 | . . . . 13 5 1 . . . . 11 8 Combat Hostiles 4 | . . . . . . . . . . . 2 2 Follow-up Attacks 9 | . . . . 2 . 2 . . . . . 5 Martial Strikes 27 | . . . . . . . . . . . 13 14 Damage Inflicted 16923 | . 12 422 . 3198 966 1227 97 83 340 719 6802 3057 Guns 267 | . 12 255 . . . . . . . . . . Cannons 167 | . . 167 . . . . . . . . . . Explosions 3231 | . . . . 875 300 . . . . . 2056 . Melee 13238 | . . . . 2321 666 1227 97 83 340 719 4746 3039 Ramming 20 | . . . . 2 . . . . . . . 18 Kinetic 255 | . . 255 . . . . . . . . . . Thermal 388 | . 12 167 . 209 . . . . . . . . Explosive 2320 | . . . . . 264 . . . . . 2056 . Electromagnetic 702 | . . . . 666 36 . . . . . . . Impact . | . . . . . . . . . . . . . Slashing 13238 | . . . . 2321 666 1227 97 83 340 719 4746 3039 Piercing . | . . . . . . . . . . . . . Highest Corruption 25 | . . . . 24 4 . . . . . 17 25 Average Corruption 11 | . . . . 11 3 . . . . . 10 18 Corruption Purged . | . . . . . . . . . . . . . Corruption Blocked . | . . . . . . . . . . . . . Effects 93 | . . . . 3 9 . . . . . 60 21 Message Errors 21 | . . . . 1 2 . . . . . 13 5 Matter Fused 17 | . . . . 1 2 . . . . . 14 . Heat Flow Errors 11 | . . . . . . . . . . . 9 2 Energy Discharges 8 | . . . . 1 1 . . . . . 5 1 Parts Rejected 5 | . . . . . . . . . . . 2 3 Parts Fused 4 | . . . . . 1 . . . . . 1 2 Data Loss (minor) 19 | . . . . . 2 . . . . . 11 6 Data Loss (major) 4 | . . . . . 1 . . . . . 2 1 Alerts 2 | . . . . . . . . . . . 2 . Misdirections 2 | . . . . . . . . . . . 1 1 Overload Shots . | . . . . . . . . . . . . . Overflow Damage 1513 | . . . . 484 163 99 . . 159 . 479 129 Projectiles . | . . . . . . . . . . . . . Explosions 73 | . . . . 53 . . . . . . 20 . Melee 1440 | . . . . 431 163 99 . . 159 . 459 129 Knockbacks . | . . . . . . . . . . . . . Impact . | . . . . . . . . . . . . . Kinetic . | . . . . . . . . . . . . . Secondary . | . . . . . . . . . . . . . Self-Inflicted Damage 248 | . . . . 47 116 . . . . . 85 . Shots 11 | . . . . 3 5 . . . . . 3 . Rammed 1 | . . . . 1 . . . . . . . . Targets Rammed 5 | . . . . 1 . . . . . . . 4 Kicked 4 | . . . . . . . . . . . . 4 Crushed . | . . . . . . . . . . . . . Highest Temperature 262 | . . . . 12 . 46 . . . . 262 224 Average Temperature 78 | . . . . 6 . 20 . . . . 99 85 Received Heat Transfer 1552 | . . 6 . 255 . 220 8 . . 9 288 766 Siege Activations . | . . . . . . . . . . . . . Martial Activations 10 | . . . . . . . . . . . 8 2 Total Turns 315 | . . . . . . . . . . . 177 138 Longest Duration 80 | . . . . . . . . . . . 47 80 Shielding Activations . | . . . . . . . . . . . . . Robots Disrupted 6 | . . . . 2 . . . . . . 2 2 Combat Hostiles 5 | . . . . 1 . . . . . . 2 2 Robots Corrupted 2 | . . . . 2 . . . . . . . . Combat Hostiles 2 | . . . . 2 . . . . . . . . Parts Fried 5 | . . . . 3 . . . . . . 2 . Impact Corruptions . | . . . . . . . . . . . . . Robots Melted . | . . . . . . . . . . . . . Combat Hostiles . | . . . . . . . . . . . . . Parts Melted 1 | . . . . 1 . . . . . . . . Heat Transferred 447 | . 25 222 . 200 . . . . . . . . Parts Sabotaged . | . . . . . . . . . . . . . Parts Stolen . | . . . . . . . . . . . . . Parts Stripped . | . . . . . . . . . . . . . Power Chain Reactions 2 | . . . . 2 . . . . . . . . Alert | -11 -10 -10 -9 -6 -5 -4 -4 -4 -4 -3 -3 -3 ------- Run | Yrd Mat Sub Scr Fac Fac Fac Upp Upp Zhi Pro Res Tes Maximum Alert Level 2 | . . . . . . . . . . . 2 1 Low Security (%) 81 | . 100 . . 100 100 100 . . . . 62 76 Level 1 17 | . . . . . . . . . . . 33 23 Level 2 1 | . . . . . . . . . . . 3 . Level 3 . | . . . . . . . . . . . . . Level 4 . | . . . . . . . . . . . . . Level 5 . | . . . . . . . . . . . . . High Security . | . . . . . . . . . . . . . Max Security . | . . . . . . . . . . . . . Peak Influence 441 | . 7 . . 155 163 183 . . . . 441 226 Initial 202 | . . . . . 42 31 . . . . . 202 Average 126 | . . . . 56 70 88 . . . . 181 173 Influence Increases 2671 | . 7 . . 483 219 417 20 5 5 110 1020 385 Destroy 0b10 Robot/C 1340 | . . . . 260 100 240 20 . . 40 500 180 Destroy 0b10 Robot/NC 185 | . 5 . . 65 30 . . 5 5 . 50 25 Destroy Leader 286 | . 2 . . 62 12 50 . . . 10 120 30 Allied During Kill 56 | . . . . . . 56 . . . . . . Successful Hack 215 | . . . . . . 24 . . . . 77 114 Disable Machine 120 | . . . . 15 45 15 . . . . 30 15 Destroy Structure 244 | . . . . 6 32 32 . . . . 168 6 Partial Spotted 15 | . . . . . . . . . . . . 15 Lose Combat Pursuer 210 | . . . . 75 . . . . . 60 75 . Influence Decreases 2556 | . 7 . . 396 241 391 111 5 5 110 660 630 Entered New Map 272 | . . . . . 45 34 35 . . . . 158 Time Decay 1614 | . 7 . . 256 196 227 76 5 5 110 470 262 Lost Part 570 | . . . . 140 . 30 . . . . 190 210 Lost Ally 100 | . . . . . . 100 . . . . . . Squads Dispatched 24 | . . . . 6 1 4 . . . . 10 3 Investigation 5 | . . . . . . 1 . . . . 2 2 Extermination 9 | . . . . 1 1 1 . . . . 5 1 Reinforcement 9 | . . . . 4 . 2 . . . . 3 . Assault . | . . . . . . . . . . . . . Garrison 1 | . . . . 1 . . . . . . . . Intercept . | . . . . . . . . . . . . . Searches Triggered . | . . . . . . . . . . . . . Construction Impeded 3 | . . . . 2 . 1 . . . . . . Haulers Reinforced 2 | . . . . 1 . . . . . . 1 . Active Scanning Responses . | . . . . . . . . . . . . . Cargo Convoy Interrupts 1 | . . . . . . . . . . . 1 . Stealth | -11 -10 -10 -9 -6 -5 -4 -4 -4 -4 -3 -3 -3 --------- Run | Yrd Mat Sub Scr Fac Fac Fac Upp Upp Zhi Pro Res Tes Distress Signals 4 | . . . . . . 2 . . . . 2 . Communications Jammed 3 | . . . . . . . . . . . 3 . Distress Signals 3 | . . . . . . . . . . . 3 . Times Spotted 136 | . 1 6 . 20 6 12 1 . . 8 62 20 Peak Tracking Total 14 | . 1 3 . 6 5 4 1 . . 4 14 9 Tactical Retreats 9 | . . . . 5 . . . . . 1 3 . Traps | -11 -10 -10 -9 -6 -5 -4 -4 -4 -4 -3 -3 -3 ------- Run | Yrd Mat Sub Scr Fac Fac Fac Upp Upp Zhi Pro Res Tes Traps Triggered 9 | . . . . 3 3 1 . . . . 1 1 Indirectly 2 | . . . . 2 . . . . . . . . Trap Hack Attempts . | . . . . . . . . . . . . . Triggered . | . . . . . . . . . . . . . Disarmed . | . . . . . . . . . . . . . Reprogrammed . | . . . . . . . . . . . . . Reused . | . . . . . . . . . . . . . Traps Extracted . | . . . . . . . . . . . . . Installed . | . . . . . . . . . . . . . Triggered . | . . . . . . . . . . . . . Machines | -11 -10 -10 -9 -6 -5 -4 -4 -4 -4 -3 -3 -3 ---------- Run | Yrd Mat Sub Scr Fac Fac Fac Upp Upp Zhi Pro Res Tes Machines Disabled 9 | . . 1 . 1 3 1 . . . . 2 1 Max in Single Turn 2 | . . 1 . 1 2 . . . . . 1 1 Garrison Access 1 | . . . . 1 . . . . . . . . Machines Repaired . | . . . . . . . . . . . . . Machines Dismantled . | . . . . . . . . . . . . . Machines Sabotaged . | . . . . . . . . . . . . . Overloaded Fab Kills . | . . . . . . . . . . . . . Hacking | -11 -10 -10 -9 -6 -5 -4 -4 -4 -4 -3 -3 -3 --------- Run | Yrd Mat Sub Scr Fac Fac Fac Upp Upp Zhi Pro Res Tes Machines Accessed 34 | . 1 2 2 2 1 3 1 . 4 . 10 8 Terminals 19 | . 1 . . 1 1 2 . . . . 8 6 Fabricators 1 | . . . . . . . . . . . . 1 Repair Stations 1 | . . . . . . . . . . . . 1 Recycling Units 1 | . . . . . . 1 . . . . . . Scanalyzers . | . . . . . . . . . . . . . Garrison Access 3 | . . . . 1 . . . . . . 2 . Total Hacks 78 | . 2 5 2 4 2 8 1 . 17 . 20 17 Successful 47 | . 1 5 2 2 1 4 1 . 17 . 5 9 Failed 31 | . 1 . . 2 1 4 . . . . 15 8 Catastrophic 9 | . 1 . . . . 1 . . . . 6 1 Database Lockouts . | . . . . . . . . . . . . . Manual 28 | . 2 . . . 2 7 . . . . 8 9 Terminals 42 | . 2 . . 2 2 6 . . . . 16 14 Fabricators 2 | . . . . . . . . . . . . 2 Repair Stations 1 | . . . . . . . . . . . . 1 Recycling Units 2 | . . . . . . 2 . . . . . . Scanalyzers . | . . . . . . . . . . . . . Garrison Access 6 | . . . . 2 . . . . . . 4 . Terminal Hacks 35 | . 1 5 2 1 . 2 1 . 17 . 2 4 Record 9 | . . 4 . . . . . . 5 . . . Part Schematic 4 | . . . . . . . . . 4 . . . Robot Analysis 5 | . 1 . . . . . . . 4 . . . Prototype ID Bank 4 | . . . . . . . . . 4 . . . Open Door 2 | . . . 1 . . . 1 . . . . . Branch Access Points 1 | . . . . . . . . . . . 1 . Terminal Index 3 | . . . . 1 . 1 . . . . . 1 Locate Traps 2 | . . . . . . 1 . . . . . 1 Recall Extermination 1 | . . . . . . . . . . . 1 . Hauler Manifests 1 | . . . . . . . . . . . . 1 Zone Layout 1 | . . . . . . . . . . . . 1 Proto ID Catalog 2 | . . 1 1 . . . . . . . . . Fabricator Hacks 2 | . . . . . . . . . . . . 2 Network Status 1 | . . . . . . . . . . . . 1 Load Schematic 1 | . . . . . . . . . . . . 1 Repair Station Hacks . | . . . . . . . . . . . . . Recycling Unit Hacks . | . . . . . . . . . . . . . Scanalyzer . | . . . . . . . . . . . . . Garrison Access Hacks 1 | . . . . 1 . . . . . . . . Seal Access 1 | . . . . 1 . . . . . . . . Unauthorized Hacks 9 | . . . . . 1 2 . . . . 3 3 Terminals 7 | . . . . . 1 1 . . . . 3 2 Botnet 7 | . . . . . 1 1 . . . . 3 2 Fabricators . | . . . . . . . . . . . . . Repair Stations 1 | . . . . . . . . . . . . 1 Patch 1 | . . . . . . . . . . . . 1 Recycling Units 1 | . . . . . . 1 . . . . . . Scrapoids 1 | . . . . . . 1 . . . . . . Scanalyzers . | . . . . . . . . . . . . . Garrison Access . | . . . . . . . . . . . . . Data Cores Recovered 1 | . . . . . 1 . . . . . . . Used . | . . . . . . . . . . . . . Hacking Detections 23 | . 1 . . 1 1 3 . . . . 10 7 Full Trace Events 2 | . . . . . . . . . . . 2 . Feedback Events . | . . . . . . . . . . . . . Feedback Blocked . | . . . . . . . . . . . . . Robot Schematics Acquired . | . . . . . . . . . . . . . Robots Built . | . . . . . . . . . . . . . Authchips . | . . . . . . . . . . . . . Time . | . . . . . . . . . . . . . Total Robot Build Rating . | . . . . . . . . . . . . . Part Schematics Acquired 4 | . . . . . . . . . 4 . . . Parts Built . | . . . . . . . . . . . . . Authchips . | . . . . . . . . . . . . . Time . | . . . . . . . . . . . . . Total Part Build Rating . | . . . . . . . . . . . . . Parts Repaired . | . . . . . . . . . . . . . Time . | . . . . . . . . . . . . . Parts Recycled . | . . . . . . . . . . . . . Recycled Matter . | . . . . . . . . . . . . . Retrieved Matter . | . . . . . . . . . . . . . Retrieved Components . | . . . . . . . . . . . . . Parts Scanalyzed . | . . . . . . . . . . . . . Part Schematics Acquired . | . . . . . . . . . . . . . Parts Damaged . | . . . . . . . . . . . . . Bothacking | -11 -10 -10 -9 -6 -5 -4 -4 -4 -4 -3 -3 -3 ------------ Run | Yrd Mat Sub Scr Fac Fac Fac Upp Upp Zhi Pro Res Tes Used RIF Installer . | . . . . . . . . . . . . . Robots Hacked . | . . . . . . . . . . . . . Non-combat . | . . . . . . . . . . . . . Combat . | . . . . . . . . . . . . . Robot Hacks Applied . | . . . . . . . . . . . . . Relay Couplers Released 3 | . . . . . . . . . . . 3 . Programmers 3 | . . . . . . . . . . . 3 . Fabnet Peak Effective % . | . . . . . . . . . . . . . Robots Rewired 1 | . . . . 1 . . . . . . . . Allies Hacked 1 | . . . . . . 1 . . . . . . Hacks Repelled . | . . . . . . . . . . . . . Allies | -11 -10 -10 -9 -6 -5 -4 -4 -4 -4 -3 -3 -3 -------- Run | Yrd Mat Sub Scr Fac Fac Fac Upp Upp Zhi Pro Res Tes Total Allies 6 | . . . . 1 . 5 . . . . . . Largest Group 5 | . . . . 1 . 5 . . . . . . Highest-Rated Group 235 | . . . . 18 . 235 . . . . . . Highest-Rated Ally 47 | . . . . 18 . 47 . . . . . . Total Orders . | . . . . . . . . . . . . . Ally Attacks 53 | . . . . . . 53 . . . . . . Total Damage 1471 | . . . . . . 1471 . . . . . . Kills 7 | . . . . . . 7 . . . . . . Allies Corrupted 1 | . . . . . . 1 . . . . . . Allies Melted . | . . . . . . . . . . . . . Intel | -11 -10 -10 -9 -6 -5 -4 -4 -4 -4 -3 -3 -3 ------- Run | Yrd Mat Sub Scr Fac Fac Fac Upp Upp Zhi Pro Res Tes Active Infowar (turns) 5843 | . . . . 146 320 537 682 605 236 824 2013 480 Sensors 5032 | . . . . . 248 534 679 605 228 823 1660 255 Structural 5345 | . . . . 36 238 535 682 605 236 823 1710 480 Cloaking 110 | . . . . 110 . . . . . . . . Jamming 1599 | . . . . . . . . . . . 1599 . Robot Analysis Total 5 | . 1 . . . . . . . 4 . . . Derelict Logs Recovered 10 | . . . 5 . . . 2 3 . . . . Drone Launches . | . . . . . . . . . . . . . Drone Recoveries . | . . . . . . . . . . . . . Exploration | -11 -10 -10 -9 -6 -5 -4 -4 -4 -4 -3 -3 -3 ------------- Run | Yrd Mat Sub Scr Fac Fac Fac Upp Upp Zhi Pro Res Tes Turns Passed 12457 | . 310 1514 3655 722 484 660 690 605 236 911 2094 576 Spaces Moved 6427 | 1 125 553 1418 256 308 380 563 498 176 577 1262 310 Core . | . . . . . . . . . . . . . Treads 729 | . . . 579 84 66 . . . . . . . Legs 5048 | 1 125 553 839 . . 144 563 498 176 577 1262 310 Wheels 438 | . . . . 172 242 24 . . . . . . Hover 212 | . . . . . . 212 . . . . . . Flight . | . . . . . . . . . . . . . Fastest Speed 90 | 120 120 260 240 101 90 108 120 120 120 118 112 113 Average Speed 164 | 120 173 260 253 156 131 120 120 120 120 119 118 123 Slowest Speed 500 | 120 260 260 260 320 240 227 120 120 120 120 360 500 Overloaded Moves 29 | . . . . . . . . . . . 22 7 Propulsion Burnouts . | . . . . . . . . . . . . . Robots Hopped . | . . . . . . . . . . . . . Potential Cave-ins . | . . . . . . . . . . . . . Cave-ins Triggered . | . . . . . . . . . . . . . Teleports 1 | . . . . . . . . . . . 1 . Exploration Rate (%) 39 | 2 17 36 88 7 8 8 77 64 60 67 40 43 Regions Visited 12 Branch Regions 7 Pre-discovered Areas 6 | . . 1 1 . . . . 1 3 . . . Known Exits Taken 7 | . . . . . 1 1 1 1 1 1 1 . Unknown Exits Taken 5 | 1 1 1 1 1 . . . . . . . . Scrap Searched 14 | . . 2 4 . . . 3 4 . 1 . . Spaces Dug 58 | . . . . . 2 3 . 1 . 1 48 3 Terrain Destroyed 110 | . . . . 6 14 3 . 1 . 1 82 3 Melee 32 | . . . . . 2 3 . 1 . 1 22 3 Projectile 2 | . . . . . . . . . . . 2 . AOE 76 | . . . . 6 12 . . . . . 58 . Terrain Rammed . | . . . . . . . . . . . . . Walls Destroyed . | . . . . . . . . . . . . . Machines Disabled . | . . . . . . . . . . . . . Actions | -11 -10 -10 -9 -6 -5 -4 -4 -4 -4 -3 -3 -3 --------- Run | Yrd Mat Sub Scr Fac Fac Fac Upp Upp Zhi Pro Res Tes Total 7877 | . 217 593 1483 500 364 545 573 503 194 774 1725 406 Wait 684 | . 84 6 23 124 . 83 1 1 . 163 190 9 Move 6415 | . 124 552 1417 255 307 379 562 497 175 576 1261 310 Hop . | . . . . . . . . . . . . . Pick Up 96 | . 4 10 17 17 12 8 2 2 2 3 16 3 Fast Attach 40 | . 1 . 1 8 4 8 . . 3 . 12 3 Attach 79 | . . . 2 23 8 8 . . 1 1 24 12 Detach 16 | . . . . 2 5 1 . . . 1 7 . Swap 107 | . 2 3 2 1 7 8 4 . 4 7 61 8 Drop 76 | . 1 2 21 3 5 14 2 1 5 4 17 1 Fire 42 | . 1 20 . 11 2 . . . . . 8 . Melee 296 | . . . . 45 14 35 2 2 4 19 119 56 Ram . | . . . . . . . . . . . . . Kick 4 | . . . . . . . . . . . . 4 Crush 1 | . . . . 1 . . . . . . . . Escape Stasis 3 | . . . . 3 . . . . . . . . Rewire 18 | . . . . 7 . 1 . . . . 10 . Trap . | . . . . . . . . . . . . . Miscellaneous . | . . . . . . . . . . . . . Route ------- -11/Scrapyard -10/Materials -10/Subcaves (discovered 2 exits: Rec / *Scr) -9/Scraptown (discovered 2 exits: *Fac x2) -6/Factory -5/Factory (discovered 2 exits: *Fac / *Upp) -4/Factory -4/Upper Caves -4/Upper Caves -4/Zhirov -3/Proximity Caves -3/Research (discovered 4 exits: *Res / Arm / *Tes x2) -3/Testing History --------- Turn | Location | Event 1 | -11/Scrapyard | Discovered new exit (range 0) 1 | -11/Scrapyard | Entered Materials 290 | -10/Materials | Discovered new exit (range 8) 311 | -10/Materials | Entered Subcaves 312 | -10/Subcaves | Approached by a straggling Scientist 316 | -10/Subcaves | Build established: Mutant 382 | -10/Subcaves | Visited Clippyterm 389 | -10/Subcaves | Identified exit to Recycling 389 | -10/Subcaves | Learned location of Extension (-6) 996 | -10/Subcaves | Shifting Twisted Machinery released Mak. Spear 1009 | -10/Subcaves | Shifting Twisted Machinery released Mak. System Shield 1318 | -10/Subcaves | Scientist uncovered a shortcut to Scraptown 1487 | -10/Subcaves | Visited 4L-MR0's lab 1559 | -10/Subcaves | Found Powered Cannon 1825 | -10/Subcaves | Entered Scraptown 2098 | -9/Scraptown | Visited UFD Registry 2098 | -9/Scraptown | Registered with UFD as "Shortsplitter" 2249 | -9/Scraptown | Scanned Subdweller tech in exchange for log data 2257 | -9/Scraptown | Learned location of 2 exits from Proximity Caves 2260 | -9/Scraptown | Learned Research interactive machine intel 2262 | -9/Scraptown | Learned Research terminal intel 2265 | -9/Scraptown | Learned location of Armory (-3) 2335 | -9/Scraptown | Visited Comm Corps 2468 | -9/Scraptown | Visited Shadow of the Wyrm 2494 | -9/Scraptown | Visited Cyclists 2512 | -9/Scraptown | Entered Cyclist Reading Room 2569 | -9/Scraptown | Visited Cave Peace 2722 | -9/Scraptown | Visited Sword Containment 2986 | -9/Scraptown | Visited Scrapoid Pod Storage 3023 | -9/Scraptown | Visited Derelict Rescue Squad 3106 | -9/Scraptown | Visited Junk Repository 3218 | -9/Scraptown | Visited Modified Component R&D 4265 | -9/Scraptown | Discovered new exit (range 11) 4421 | -9/Scraptown | Visited Assassins FH 4436 | -9/Scraptown | Visited Spacefarers 4600 | -9/Scraptown | Visited Junk Repository 4714 | -9/Scraptown | Visited A0-MCA Data Center 4729 | -9/Scraptown | Given a C+ rating by A0-MCA 4734 | -9/Scraptown | Found A0-MCA's Component Scanner 4809 | -9/Scraptown | Visited Scrap Suit Storage 4890 | -9/Scraptown | Found DRS Beacon 5050 | -9/Scraptown | Visited Supply Room 5099 | -9/Scraptown | Visited Science Guys 5348 | -9/Scraptown | Met Optimus 5348 | -9/Scraptown | Accepted into 0bPrime 5475 | -9/Scraptown | Discovered new exit (range 3) 5480 | -9/Scraptown | Entered Factory 5480 | -6/Factory | Evolved 8 slots: Power x1, Propulsion x2, Utility x5 5669 | -6/Factory | Lost 7 parts (1p2n4u) 5820 | -6/Factory | Garrison activated, responded to threat 5891 | -6/Factory | Lost 3 parts (1p1n1u) 5994 | -6/Factory | Lost 4 parts (3n1u) 6009 | -6/Factory | Discovered new exit (range 16) 6132 | -6/Factory | System corruption reached 10% 6133 | -6/Factory | Found Prototype Launcher 6133 | -6/Factory | Identified Rocket Array 6137 | -6/Factory | Found Corrupted Rocket Array 6145 | -6/Factory | Lost 5 parts (2p2n1u) 6202 | -6/Factory | Entered another Factory area 6202 | -5/Factory | Evolved 2 slots: Propulsion x2 6203 | -5/Factory | Identified exit to Upper Caves 6224 | -5/Factory | Build established: Scavenger-Mutant 6589 | -5/Factory | Discovered new exit (range 15) 6627 | -5/Factory | Identified exit to Factory 6686 | -5/Factory | Entered another Factory area 6686 | -4/Factory | Evolved 2 slots: Utility x2 6844 | -4/Factory | Spotted B-86 Titan 6899 | -4/Factory | Scrapoids reinforcements arrived? 7019 | -4/Factory | Lost 5 allies 7307 | -4/Factory | Discovered new exit (range 3) 7309 | -4/Factory | Identified exit to Upper Caves 7346 | -4/Factory | Entered Upper Caves 7412 | -4/Upper Caves | Build established: Scavenger-Assassin 7433 | -4/Upper Caves | Learned Research terminal intel 7695 | -4/Upper Caves | Learned Research terminal intel 8018 | -4/Upper Caves | Discovered new exit (range 14) 8032 | -4/Upper Caves | Identified exit to Upper Caves 8036 | -4/Upper Caves | Entered another Upper Caves area 8037 | -4/Upper Caves | Encountered a Warlord checkpoint 8159 | -4/Upper Caves | Learned Research terminal intel 8338 | -4/Upper Caves | Discovered new exit (range 9) 8347 | -4/Upper Caves | Identified exit to Zhirov 8458 | -4/Upper Caves | Learned Research terminal intel 8641 | -4/Upper Caves | Entered Zhirov 8641 | -4/Zhirov | Discovered new exit (range 3) 8663 | -4/Zhirov | Met Zhirov 8685 | -4/Zhirov | Learned location of Quarantine (-2) 8685 | -4/Zhirov | Learned location of Testing (-3) 8685 | -4/Zhirov | Learned location of Command (-1) 8695 | -4/Zhirov | Zhirov requested help retrieving the SGEMP Prototype 8718 | -4/Zhirov | Found Alien Artifact 8718 | -4/Zhirov | Identified Integrated Reactor 8718 | -4/Zhirov | Installed Integrated Reactor, increased core energy generation (+10) 8803 | -4/Zhirov | Found Alien Artifact 8872 | -4/Zhirov | Identified exit to Proximity Caves 8877 | -4/Zhirov | Entered Proximity Caves 8878 | -3/Proximity Caves | Identified exit to Research 9788 | -3/Proximity Caves | Entered Research 9788 | -3/Research | Evolved 2 slots: Utility x2 9789 | -3/Research | Loaded intel: 45 interactive machine locations 9790 | -3/Research | Loaded intel: 22 terminal locations 10075 | -3/Research | Discovered new exit (range 6) 10080 | -3/Research | Identified exit to Research 10253 | -3/Research | Found Fusion Bomb Launcher 10706 | -3/Research | Build established: Infiltrator-Assassin 10712 | -3/Research | Found Prototype Processor 10712 | -3/Research | Identified Exp. Target Analyzer 10924 | -3/Research | System corruption reached 10% 11271 | -3/Research | Identified exit to Armory 11271 | -3/Research | Identified exit to Testing 11518 | -3/Research | Lost 3 parts (3u) 11647 | -3/Research | Cargo convoy interrupted 11654 | -3/Research | Identified Transdimensional Reconstructor 11654 | -3/Research | Warped through subspace 11684 | -3/Research | Lost 6 parts (2p1n2u1w) 11882 | -3/Research | Entered Testing 11927 | -3/Testing | Build established: Scavenger-Assassin 11927 | -3/Testing | Found Prototype Processor 11927 | -3/Testing | Identified Spectral Analyzer 12040 | -3/Testing | Found Prototype Device 12040 | -3/Testing | Identified AEGIS Remote Shield 12195 | -3/Testing | Core integrity fell below 50% 12442 | -3/Testing | Core integrity fell below 20% 12458 | -3/Testing | Destroyed by G-67 Veteran with Field Laser Last Messages --------------- 12426_ Martial strike on G-67 Veteran. 12426_ Prc. Matter Filter destroyed. 12429_ Deflected attack with Companion Sword. 12433_ Critical hit (Burn: +50). 12439_ Martial strike on G-67 Veteran. 12441_ Deflected attack with Companion Sword. Companion Sword: "Time to be sneaky." 12446_ Deflected attack with Companion Sword. 12447_ Companion Sword surprise attacks G-67 Veteran. 12450_ Critical hit (Burn: +37). 12452_ Kicked G-67 Veteran out of the way. 12452_ Antimatter Reactor destroyed. 12454_ R-10 Processor collects Flexi-carbon Leg. 12455_ G-67 Veteran destroyed. Companion Sword: "I have an especially strong urge to obliterate every Grunt we meet." 12455_ Martial strike on G-67 Veteran. G-67 Veteran is pierced by a surge of energy. 12455_ G-67 Veteran destroyed. 12458_ Enh. Multireflex Exoskeleton destroyed. Map ----- +----------------------------------------------------+ | ?????????????????????????????????????????????????? | | ?????????????????????????????????????????????????? | | ?????????????????????????????????????????????????? | | ?????????????????????????????????????????????????? | | ?????????????????????????????????????????????????? | | ???????????????????????????????????? ?????? ?? | | ???????????????????????????????????? ????? ?? | | ???????????????????????????????????? ???? ## | | ??????????????????????????????????? "???? ## | | ???????????????????????????????????## "???? ## | | ??????????????????????????????????? # ^ "???? ## | | ??????????????????????????????????? # ??? ## | | ??????????????????????????????????? # """?"" | | ??????????????????????????????????? # """""" | | ??????????????????????????????????? # """""" | | ??????????????????????????????????? # ^ | | ???????????????????????????????? # """""" ## | | #########???????????????????????##### """""" ## | | #########???????????????????????## """""" # | | ##???????????????????????## # | | """ ##????????????????######### # | | """ #####?????????????######### % # | | """ #####?????????????## # ###### / | | "" ##??????????##### """" # ###### # | | """ """##??????????#####R"""" # ##??## # | | """ T"##??????????##g@g!"""" # ##??## ## | | """ """##??????????##*##%"""" # ##??## ## | | "" ##????########=## """ # ##??## ## | | ########?########/## * + ##??## ## | | ########?## !%*# " = !# ##??## | | #"""""##### """ = # " !=# ##??## | | #+######""T""##### """ + """[ # ##??## | | + ## """ # """ #! ##??## | | # ] """ ""## """ # " */ ##??## | | # """ ] ""## """ # =# ##??## """" | | # """ T"##? ###/#### ##??## """" | | # ""## ### #### ##??## """" | | # ## ### #### ##??## """" | | ###+######"######+######## #### ##??## " | | ^ ^ ##?????? | | ??????? | | """^ ###????????# | | ^ """ # ????????# | | ##########+############## """ # ?????????# | | ####### # ## ! # ?????????# | | ##???## # """ ## """ # ???????"## | | #####???## "" ! + """ # """ = / ???????"## | | #####???##""" # """ + """ # ???????"#" | | ????????##"T # # # ???????"#" | | ????????##"" """ # """ # # ? ## | +----------------------------------------------------+ Best States ------------- Heat Dissipation 84 Energy Generation 51 Energy Capacity 950 Matter Stores 300 Matter Capacity 300 Sight Range 16 Robot Scan Range 18 Terrain Scan Density 10 Jamming Range 14 Cloak Strength 2 Corruption Block 20 Armor Coverage 700 Resistance: KI 30 Resistance: TH 30 Resistance: EX 50 Propulsion Shielding 33 Utility Shielding 33 Melee Speed Boost 30 Phase Shifting 10 Evasion (%) 80 Melee Accuracy 22 Target Analysis 8 Recoil Reduction 3 Matter Filtering 50 Particle Charging 30 Force Boost 30 Offensive Hacking 32 Defensive Hacking 11 Item Schematics ----------------- Assault Drone Bay | -4/Zhirov | Free Exp. Heat Sink | -4/Zhirov | Free Exp. Optical Array | -4/Zhirov | Free Imp. Arc Thrower | -4/Zhirov | Free Robot Schematics ------------------ None Fabricated ------------ Nothing Repaired ---------- Nothing Alien Tech Used ----------------- Integrated Reactor Transdimensional Reconstructor Achievements -------------- None Challenges ------------ None Game ------ Seed MetaBiocellFlakker Manual? 0 Play Time 01:15:36 Cumulative 405.1 hours Start 2025.07.27 @ 16:12:57 End 2025.07.27 @ 20:31:02 Sessions 3 Manual Loads 0 Difficulty Rogue Special Mode None Game No. 511 Rogue 511 Adventurer 0 Explorer 0 Win Type - Total 32 Types 16/1/9/1/1/1/0/1/1/1 Lore% 87 Gallery% 80 Achievement% 77 Wizard Run 0 Options --------- Layout 0 ASCII 0 Keyboard 0 Movement Numpad Keybinds 0 Fullscreen 1 Font 18/SmallcapsGlow Map View 76x50 Zoom Use 0% Tactical HUD 1 Map Filters NONE Filters NONE Steam 1 RUN: 8b71f05a-f7a2-4377-8c37-69137eff8b8d